bitfinex/quotes_SOLUSD_20220109
["timestamp","ask_amount","ask_price","bid_price","bid_amount"]
[1641692750926,25.19558977,142.58,142.52,10.08]
[1641692751327,0.25,142.57,142.52,10.08]
[1641692752126,10.7772,142.57,142.52,10.08]
[1641692752533,0.26,142.56,142.52,10.08]
[1641692752727,0.26,142.56,142.51,0.00992055]
[1641692752926,0.26,142.56,142.52,8.42]
[1641692753130,10.7878,142.56,142.52,8.42]
[1641692753528,10.7878,142.56,142.51,0.00992055]
[1641692753728,0.25,142.55,142.51,0.00992055]
[1641692753927,23.78209275,142.55,142.51,0.00992055]
[1641692754331,10.5302,142.53,142.51,0.00992055]
[1641692754528,27.09709237,142.52,142.51,0.00992055]
[1641692754729,33.41149231,142.52,142.51,0.00992055]
[1641692755329,30.37929234,142.52,142.51,0.00992055]
[1641692755733,27.34709237,142.52,142.51,0.00992055]
[1641692756230,27.09709237,142.52,142.51,0.00992055]
[1641692757230,33.16149231,142.52,142.51,0.00992055]
[1641692757731,33.41149231,142.52,142.51,0.00992055]
[1641692759232,27.34709237,142.52,142.51,0.00992055]
[1641692759633,27.09709237,142.52,142.51,0.00992055]
[1641692760533,101.2402,142.58,142.51,8.42992055]
[1641692760734,1.83006969,142.59,142.51,8.42992055]
[1641692761334,1.83006969,142.59,142.53,10.522]
[1641692761537,22.89991351,142.58,142.54,8.42]
[1641692761746,22.89991351,142.58,142.55,8.42]
[1641692761936,22.89991351,142.58,142.52,3.0]
[1641692761937,3.03219997,142.57,142.53,8.42]
[1641692762138,3.28219997,142.57,142.53,8.42]
[1641692762437,10.5286,142.55,142.53,8.42]
[1641692762838,0.51,142.54,142.53,8.42]
[1641692763037,0.51,142.54,142.51,0.00992055]
[1641692763237,29.43822112,142.53,142.51,0.00992055]
[1641692763440,0.51,142.52,142.51,0.00992055]
[1641692764339,3.54219997,142.52,142.51,0.00992055]
[1641692764741,0.51,142.52,142.51,0.00992055]
[1641692765239,0.26,142.52,142.51,0.00992055]
[1641692765642,1.83006969,142.58,142.51,0.00992055]
[1641692765840,1.83006969,142.58,142.52,8.42]
[1641692765841,3.26,142.57,142.52,8.42]
[1641692766339,3.0,142.57,142.52,8.42]
[1641692766539,24.61604279,142.56,142.52,8.42]
[1641692767543,24.61604279,142.56,142.52,18.9432]
[1641692767743,0.26,142.55,142.52,18.9432]
[1641692767941,24.61604279,142.56,142.52,18.9432]
[1641692768142,24.61604279,142.56,142.53,3.0]
[1641692768342,24.61604279,142.56,142.53,11.42]
[1641692768544,24.61604279,142.56,142.53,21.9422]
[1641692768747,0.25,142.55,142.53,8.42]
[1641692768946,3.03219997,142.54,142.51,0.00992055]
[1641692769144,8.09519997,142.54,142.51,0.00992055]
[1641692769343,0.51,142.53,142.51,0.00992055]
[1641692769744,23.2627084,142.52,142.51,0.00992055]
[1641692769945,23.7727084,142.52,142.51,0.00992055]
[1641692770147,29.83710834,142.52,142.51,0.00992055]
[1641692772071,40.36610834,142.52,142.51,0.00992055]
[1641692772571,43.36610834,142.52,142.51,0.00992055]
[1641692776376,40.36610834,142.52,142.51,0.00992055]
[1641692776578,43.36610834,142.52,142.51,0.00992055]
[1641692778977,43.10610834,142.52,142.51,0.00992055]
[1641692779179,40.10610834,142.52,142.51,0.00992055]
[1641692780380,40.11610834,142.52,142.51,0.00992055]
[1641692781880,40.36610834,142.52,142.51,0.00992055]
[1641692783180,40.10610834,142.52,142.51,0.00992055]
[1641692784382,39.85610834,142.52,142.51,0.00992055]
[1641692784581,29.32710834,142.52,142.51,0.00992055]
[1641692785380,29.58710834,142.52,142.51,0.00992055]
[1641692786184,0.26,142.52,142.51,0.00992055]
[1641692788685,0.25,142.53,142.51,0.00992055]
[1641692789084,23.12874487,142.54,142.51,0.00992055]
[1641692789986,0.26,142.53,142.51,0.00992055]
[1641692790791,27.1740258,142.47,142.46,0.00747539]
[1641692790990,27.4240258,142.47,142.46,0.00747539]
[1641692791190,27.4240258,142.47,142.38,5.96310503]
[1641692791391,0.25,142.46,142.38,14.38310503]
[1641692791591,0.25,142.46,142.42,10.5292]
[1641692791891,0.51,142.46,142.38,14.38310503]
[1641692792089,27.83814297,142.45,142.38,8.42]
[1641692792290,27.83814297,142.45,142.39,0.25]
[1641692792493,0.51,142.44,142.39,8.42]
[1641692793693,0.51,142.44,142.36,8.42]
[1641692793893,11.043,142.44,142.36,18.953]
[1641692794292,0.51,142.44,142.37,0.25]
[1641692794494,0.51,142.44,142.37,0.51]
[1641692794892,0.51,142.44,142.37,11.0418]
[1641692795993,0.51,142.44,142.37,10.7918]
[1641692796192,0.26,142.44,142.37,10.7918]
[1641692796593,0.26,142.44,142.38,8.42]
[1641692796819,0.51,142.44,142.38,11.42]
[1641692797022,0.51,142.44,142.38,35.62618844]
[1641692797419,0.51,142.44,142.38,11.42]
[1641692797618,0.25,142.44,142.38,11.42]
[1641692797820,0.25,142.44,142.39,0.26]
[1641692798020,0.25,142.44,142.38,11.42]
[1641692799120,0.25,142.44,142.38,8.42]
[1641692799322,0.51,142.44,142.38,8.42]
[1641692800220,0.25,142.44,142.38,8.42]
[1641692801423,0.25,142.44,142.4,10.5302]
[1641692801621,0.25,142.44,142.38,8.42]
[1641692802021,0.51,142.44,142.38,8.42]
[1641692802424,11.0424,142.44,142.38,8.42]
[1641692804221,0.51,142.44,142.38,8.42]
[1641692804830,0.26,142.44,142.38,8.42]
[1641692805027,0.26,142.44,142.39,3.25]
[1641692805430,0.51,142.46,142.38,8.42]
[1641692806433,0.51,142.46,142.39,24.80101932]
[1641692806635,11.0413,142.46,142.39,24.80101932]
[1641692809044,27.1740258,142.47,142.4,8.67]
[1641692809445,27.1740258,142.47,142.41,0.26]
[1641692809645,27.1740258,142.47,142.41,8.68]
[1641692809846,27.1740258,142.47,142.41,11.68]
[1641692810048,2.58e-05,142.47,142.42,0.25]
[1641692810250,3.82360362,142.55,142.43,52.42]
[1641692810445,3.82360362,142.55,142.44,0.51]
[1641692810649,3.82360362,142.55,142.45,8.42]
[1641692810848,78.4727,142.57,142.45,8.42]
[1641692811047,78.4727,142.57,142.51,10.5223]
[1641692811247,36.25439366,142.58,142.51,10.5223]
[1641692811248,0.26,142.56,142.51,10.5223]
[1641692811450,28.59680362,142.59,142.51,18.9423]
[1641692811648,155.1527,142.61,142.52,3.26]
[1641692811850,76.5521,142.61,142.52,3.26]
[1641692812251,104.70453325,142.61,142.53,8.67]
[1641692812853,115.22463325,142.61,142.54,10.5196]
[1641692813051,38.67253325,142.61,142.54,10.5196]
[1641692813453,23.0405,142.62,142.55,10.37]
[1641692813751,23.0405,142.62,142.55,10.12]
[1641692814559,33.5605,142.62,142.55,20.6392]
[1641692814758,0.25,142.61,142.55,10.12]
[1641692814957,0.51,142.61,142.55,10.12]
[1641692815160,0.25,142.61,142.55,10.12]
[1641692815777,0.25,142.61,142.55,20.6391]
[1641692816382,0.51,142.61,142.55,10.12]
[1641692816580,0.51,142.61,142.56,3.0]
[1641692816779,10.5168,142.66,142.58,10.5168]
[1641692816986,173.7638,142.7,142.58,20.6368]
[1641692817185,198.016,142.7,142.59,3.26]
[1641692817384,198.016,142.7,142.6,10.12]
[1641692817585,103.316,142.7,142.6,10.12]
[1641692817785,34.86251605,142.69,142.6,10.12]
[1641692818185,0.26,142.68,142.6,10.12]
[1641692818385,0.51,142.68,142.6,10.12]
[1641692818787,0.51,142.68,142.61,0.25]
[1641692819216,0.51,142.68,142.6,10.12]
[1641692819587,10.5163,142.66,142.6,10.12]
[1641692820387,0.51,142.65,142.6,10.12]
[1641692821689,11.0273,142.65,142.6,10.12]
[1641692822391,11.0273,142.65,142.57,10.12]
[1641692822590,30.40051446,142.63,142.54,10.12]
[1641692822789,10.5209,142.61,142.54,10.12]
[1641692822989,29.17380174,142.6,142.54,10.12]
[1641692824389,10.5217,142.59,142.55,0.25]
[1641692824590,0.26,142.6,142.55,0.25]
[1641692824789,0.26,142.58,142.55,0.25]
[1641692824990,6.06439994,142.57,142.53,3.0]
[1641692825292,0.26,142.6,142.53,13.12]
[1641692825693,10.7813,142.6,142.53,23.6404]
[1641692825891,10.7813,142.6,142.54,0.25]
[1641692826591,0.26,142.6,142.54,0.25]
[1641692826992,0.51,142.63,142.54,0.25]
[1641692827693,10.12,142.62,142.54,10.5194]
[1641692827892,10.12,142.62,142.51,35.0636]
[1641692827893,0.51,142.61,142.51,35.0636]
[1641692828095,0.51,142.61,142.49,35.0624]
[1641692828593,24.85197278,142.6,142.48,31.41503913]
[1641692828994,3.51,142.59,142.48,31.41503913]
[1641692829194,3.51,142.59,142.46,10.12]
[1641692829394,24.2363,142.58,142.46,10.12]
[1641692829593,3.0,142.57,142.47,0.25]
[1641692829793,3.51,142.57,142.47,0.25]
[1641692830195,22.9636643,142.56,142.46,33.14239659]
[1641692830398,0.51,142.55,142.46,33.14239659]
[1641692830599,3.51,142.55,142.46,33.14239659]
[1641692831001,10.5253,142.54,142.46,33.14239659]
[1641692831199,3.51,142.55,142.46,33.14239659]
[1641692833202,14.0345,142.55,142.46,33.14239659]
[1641692833402,3.25,142.55,142.46,33.14239659]
[1641692833805,3.25,142.55,142.47,0.26]
[1641692834003,3.25,142.55,142.47,0.51]
[1641692834632,3.25,142.55,142.47,0.25]
[1641692835232,3.25,142.55,142.47,0.51]
[1641692835433,3.25,142.55,142.47,0.25]
[1641692835834,3.25,142.55,142.47,0.51]
[1641692836835,13.7745,142.55,142.47,0.51]
[1641692837036,0.26,142.54,142.47,0.51]
[1641692837237,0.26,142.54,142.47,0.25]
[1641692838237,10.7852,142.54,142.47,0.25]
[1641692838438,0.25,142.53,142.47,0.25]
[1641692839137,10.7765,142.53,142.47,0.25]
[1641692839338,0.25,142.53,142.47,0.25]
[1641692839539,0.26,142.52,142.47,0.25]
[1641692839738,0.26,142.55,142.47,0.25]
[1641692839739,0.51,142.55,142.47,0.25]
[1641692840540,0.51,142.55,142.46,10.12]
[1641692840749,0.51,142.55,142.43,10.12]
[1641692840941,3.51,142.55,142.43,13.12]
[1641692841341,10.5289,142.49,142.43,13.12]
[1641692841542,40.47735644,142.49,142.43,13.12]
[1641692841741,0.51,142.48,142.41,136.35652042]
[1641692842144,38.6188,142.48,142.41,136.35652042]
[1641692842345,10.5319,142.45,142.41,136.35652042]
[1641692842547,38.6188,142.48,142.41,136.35652042]
[1641692842744,0.26,142.44,142.41,136.35652042]
[1641692843045,6.06439994,142.43,142.41,136.35652042]
[1641692843246,28.4441,142.48,142.41,136.35652042]
[1641692843446,28.4441,142.48,142.41,159.50631497]
[1641692844048,25.4441,142.48,142.41,159.50631497]
[1641692844248,150.0876,142.52,142.41,159.50631497]
[1641692844547,0.26,142.51,142.42,3.25]
[1641692844747,0.26,142.51,142.44,10.5256]
[1641692844946,73.7643,142.52,142.44,10.5256]
[1641692845147,73.7643,142.52,142.44,42.51716449]
[1641692845547,73.7643,142.52,142.45,0.25]
[1641692845847,73.7643,142.52,142.44,31.99156449]
[1641692846047,0.25,142.51,142.44,31.99156449]
[1641692846749,0.25,142.51,142.45,3.0]
[1641692846946,0.25,142.51,142.46,10.5241]
[1641692847547,0.25,142.53,142.46,10.5241]
[1641692847947,0.51,142.53,142.46,10.5241]
[1641692849552,0.51,142.53,142.47,28.13515819]
[1641692849752,46.5379,142.54,142.47,38.65885819]
[1641692849951,78.7549,142.56,142.48,0.25]
[1641692850153,78.7549,142.56,142.48,7.445]
[1641692850753,23.1351,142.58,142.49,3.0]
[1641692850957,23.1351,142.58,142.5,31.56773018]
[1641692851456,23.1351,142.58,142.51,3.0]
[1641692851855,23.1351,142.58,142.54,10.5183]
[1641692852056,10.3385,142.59,142.52,0.25]
[1641692852983,10.3385,142.59,142.55,23.44973814]
[1641692853187,18.01098164,142.63,142.55,33.56973814]
[1641692853383,3.82360362,142.66,142.56,3.51]
[1641692853584,3.82360362,142.66,142.57,136.56]
[1641692854083,5.48792603,142.67,142.57,136.56]
[1641692854084,43.07413428,142.69,142.59,36.99392251]
[1641692854284,14.33800362,142.69,142.6,10.12]
[1641692854486,3.82360362,142.69,142.6,13.37]
[1641692854885,52.62030362,142.72,142.6,13.37]
[1641692855084,10.5138,142.7,142.61,10.5133]
[1641692855284,77.11888699,142.72,142.62,29.9021904]
[1641692855886,0.25,142.71,142.62,29.9021904]
[1641692856087,0.25,142.71,142.63,3.0]
[1641692856284,0.25,142.71,142.62,10.512]
[1641692856485,0.25,142.71,142.61,10.12]
[1641692856684,0.25,142.71,142.57,10.12]
[1641692856888,73.4,142.71,142.57,10.12]
[1641692857584,14.34090362,142.69,142.57,10.12]
[1641692857788,30.28661769,142.68,142.57,10.12]
[1641692857988,33.53661769,142.68,142.59,28.53895311]
[1641692858588,44.05171769,142.68,142.57,10.12]
[1641692859391,0.26,142.67,142.57,10.12]
[1641692859592,0.26,142.67,142.58,23.04891882]
[1641692859791,0.26,142.67,142.58,33.56411882]
[1641692860290,0.26,142.67,142.58,23.04891882]
[1641692860291,10.7758,142.67,142.58,23.04891882]
[1641692860491,0.25,142.66,142.58,23.04891882]
[1641692860792,0.25,142.66,142.55,10.12]
[1641692861091,10.37,142.66,142.51,10.12]
[1641692861492,10.5197,142.62,142.51,10.12]
[1641692861691,10.5197,142.62,142.52,23.70286789]
[1641692861892,0.51,142.61,142.52,23.70286789]
[1641692862195,0.51,142.61,142.52,34.22256789]
[1641692862993,0.51,142.63,142.57,10.516]
[1641692863194,0.25,142.63,142.57,20.636]
[1641692864194,0.25,142.63,142.58,25.33409422]
[1641692864695,103.6592,142.67,142.58,25.33409422]
[1641692865195,24.6055,142.67,142.59,10.12]
[1641692865397,23.0863,142.7,142.59,10.37]
[1641692865595,73.77,142.71,142.6,3.0]
[1641692865796,3.82360362,142.72,142.61,10.12]
[1641692865997,77.4333,142.75,142.62,32.56089]
[1641692866196,77.4333,142.75,142.67,10.5087]
[1641692866497,106.54574225,142.76,142.67,32.93503615]
[1641692866698,0.25,142.74,142.67,32.93503615]
[1641692866898,0.25,142.75,142.67,32.93503615]
[1641692867099,0.25,142.75,142.67,5.266]
[1641692867698,104.29574225,142.76,142.63,10.12]
[1641692867902,104.29574225,142.76,142.64,13.7602]
[1641692868111,114.80684225,142.76,142.65,28.61035735]
[1641692868911,0.26,142.75,142.65,39.12055735]
[1641692869310,0.26,142.75,142.65,28.61035735]
[1641692869710,0.51,142.75,142.65,28.61035735]
[1641692870110,0.51,142.75,142.66,3.0]
[1641692870515,0.25,142.75,142.65,28.61035735]
[1641692870714,0.25,142.75,142.66,3.0]
[1641692870916,0.25,142.75,142.66,8.848]
[1641692871115,0.25,142.75,142.67,3.0]
[1641692871315,0.25,142.75,142.68,28.47617882]
[1641692871940,0.51,142.75,142.66,5.848]
[1641692872137,0.51,142.75,142.66,10.5092]
[1641692872543,0.51,142.75,142.64,10.12]
[1641692872739,0.51,142.75,142.65,3.0]
[1641692873037,3.51,142.75,142.65,33.59341385]
[1641692873641,3.51,142.75,142.65,3.0]
[1641692873842,21.33835468,142.75,142.65,3.0]
[1641692874645,14.0201,142.75,142.65,3.0]
[1641692874844,14.0201,142.75,142.66,29.12050456]
[1641692875646,11.0201,142.75,142.66,29.12050456]
[1641692875848,3.0,142.74,142.66,29.12050456]
[1641692876250,0.51,142.73,142.66,29.12050456]
[1641692876446,11.0201,142.75,142.66,29.12050456]
[1641692877546,10.7601,142.75,142.66,29.12050456]
[1641692877750,10.7601,142.75,142.67,0.26]
[1641692877947,10.7601,142.75,142.66,29.12050456]
[1641692879049,10.7716,142.74,142.66,29.12050456]
[1641692879249,10.7716,142.74,142.66,39.24050456]
[1641692879448,0.25,142.73,142.66,39.24050456]
[1641692880149,0.26,142.74,142.66,39.24050456]
[1641692880354,0.26,142.74,142.67,0.25]
[1641692880550,3.51,142.76,142.67,13.37]
[1641692880752,0.51,142.76,142.67,13.37]
[1641692881451,11.0193,142.76,142.67,13.37]
[1641692881651,11.0193,142.76,142.67,13.12]
[1641692882455,11.0193,142.76,142.67,3.0]
[1641692882655,11.0193,142.76,142.66,29.12050456]
[1641692883083,36.52404036,142.74,142.66,29.12050456]
[1641692883487,0.51,142.73,142.66,29.12050456]
[1641692884288,0.51,142.73,142.64,10.12]
[1641692884889,14.0216,142.73,142.64,10.12]
[1641692885289,11.0216,142.73,142.64,10.12]
[1641692885489,11.0216,142.73,142.65,3.0]
[1641692885687,11.0216,142.73,142.62,10.12]
[1641692885888,34.7201,142.73,142.58,10.12]
[1641692886089,77.9794,142.72,142.54,10.12]
[1641692886292,10.12,142.71,142.54,10.12]
[1641692886488,3.0,142.7,142.54,10.12]
[1641692886688,25.45932044,142.69,142.55,30.22792763]
[1641692886887,25.96932044,142.69,142.55,30.22792763]
[1641692887089,3.0,142.68,142.55,30.22792763]
[1641692887289,10.5205,142.63,142.55,30.22792763]
[1641692887490,0.26,142.62,142.55,30.22792763]
[1641692887694,0.51,142.62,142.55,30.22792763]
[1641692887891,0.25,142.62,142.55,30.22792763]
[1641692888292,10.5209,142.6,142.55,30.22792763]
[1641692888493,0.26,142.59,142.55,30.22792763]
[1641692888692,0.26,142.59,142.54,10.12]
[1641692888892,0.26,142.59,142.55,0.25]
[1641692890095,0.26,142.59,142.55,10.37]
[1641692890297,0.26,142.59,142.55,10.12]
[1641692890704,10.782,142.59,142.55,10.12]
[1641692890897,0.25,142.58,142.55,10.12]
[1641692891496,6.06439994,142.57,142.55,10.12]
[1641692891896,0.26,142.56,142.55,10.12]
[1641692892296,0.51,142.56,142.55,10.12]
[1641692892496,0.51,142.56,142.51,10.12]
[1641692892997,10.7738,142.56,142.51,10.12]
[1641692893597,0.26,142.55,142.51,10.12]
[1641692893897,10.5257,142.54,142.51,10.12]
[1641692894097,6.06439994,142.53,142.51,10.12]
[1641692894298,6.32439994,142.53,142.51,10.12]
[1641692895099,3.29219997,142.53,142.51,10.12]
[1641692895297,0.25,142.57,142.51,41.02971726]
[1641692895499,3.25,142.6,142.51,41.02971726]
[1641692895699,0.25,142.6,142.52,3.0]
[1641692895902,0.25,142.61,142.52,3.0]
[1641692896100,10.5228,142.6,142.52,3.0]
[1641692896300,3.25,142.61,142.52,3.0]
[1641692896502,0.25,142.61,142.52,3.0]
[1641692896902,0.25,142.61,142.51,41.02971726]
[1641692897101,11.0302,142.61,142.51,51.55031726]
[1641692897602,11.0302,142.61,142.51,41.02971726]
[1641692897603,0.51,142.61,142.51,41.02971726]
[1641692898001,0.51,142.61,142.52,3.0]
[1641692898203,0.51,142.61,142.56,10.5168]
[1641692898702,0.51,142.61,142.51,45.1801]
[1641692898904,3.51,142.62,142.51,10.12]
[1641692899303,3.25,142.62,142.55,10.517]
[1641692899504,3.25,142.62,142.53,28.47834454]
[1641692899906,3.25,142.62,142.54,3.0]
[1641692900106,3.25,142.62,142.54,13.12]
[1641692900306,3.82360362,142.67,142.58,10.515]
[1641692900505,3.82360362,142.67,142.58,18.149]
[1641692900708,83.36280362,142.68,142.58,18.149]
[1641692900907,83.36280362,142.68,142.59,3.0]
[1641692901108,83.36280362,142.68,142.6,27.84010886]
[1641692901309,83.36280362,142.68,142.6,37.96010886]
[1641692901310,3.82360362,142.68,142.6,37.96010886]
[1641692901739,10.514,142.69,142.6,37.96010886]
[1641692902539,10.5161,142.67,142.6,37.96010886]
[1641692902938,0.51,142.66,142.6,37.96010886]
[1641692903540,0.25,142.66,142.6,37.96010886]
[1641692903939,0.25,142.68,142.6,37.96010886]
[1641692904141,10.5157,142.67,142.6,37.96010886]
[1641692904543,0.51,142.66,142.6,37.96010886]
[1641692904942,0.25,142.66,142.6,37.96010886]
[1641692905545,10.7664,142.66,142.6,37.96010886]
[1641692905742,10.5164,142.66,142.6,37.96010886]
[1641692905942,0.51,142.65,142.6,37.96010886]
[1641692906443,0.25,142.65,142.6,37.96010886]
[1641692906948,10.5185,142.63,142.6,37.96010886]
[1641692907146,35.0616,142.67,142.6,37.96010886]
[1641692907347,3.51,142.66,142.6,37.96010886]
[1641692907645,0.25,142.66,142.6,37.96010886]
[1641692908346,3.25,142.66,142.6,37.96010886]
[1641692908749,10.5175,142.65,142.6,37.96010886]
[1641692908948,10.7775,142.65,142.6,37.96010886]
[1641692909548,3.0,142.64,142.6,37.96010886]
[1641692909747,10.5199,142.62,142.6,37.96010886]
[1641692909949,6.57439994,142.61,142.6,10.12]
[1641692910148,6.57439994,142.61,142.54,10.12]
[1641692910949,6.57439994,142.61,142.55,29.43404564]
[1641692911147,17.09559994,142.61,142.55,29.43404564]
[1641692911649,6.57439994,142.61,142.55,29.43404564]
[1641692911851,3.03219997,142.61,142.55,29.43404564]
[1641692912048,3.03219997,142.61,142.56,13.12]
[1641692912252,1.9805488,142.63,142.56,13.63]
[1641692912449,1.9805488,142.63,142.58,10.5153]
[1641692912649,1.9805488,142.63,142.59,10.12]
[1641692912850,1.9805488,142.68,142.6,26.18274307]
[1641692913051,1.9805488,142.68,142.6,36.30274307]
[1641692913249,0.25,142.67,142.6,36.30274307]
[1641692914253,0.25,142.67,142.6,10.12]
[1641692914452,12.7461488,142.67,142.6,10.12]
[1641692914852,38.0627,142.66,142.6,10.12]
[1641692915253,0.25,142.65,142.58,28.14515599]
[1641692915954,0.51,142.65,142.58,28.14515599]
[1641692919957,11.0274,142.65,142.58,28.14515599]
[1641692920656,10.7774,142.65,142.58,28.14515599]
[1641692921459,10.5174,142.65,142.58,28.14515599]
[1641692921956,0.25,142.64,142.58,28.14515599]
[1641692922258,10.5185,142.63,142.58,28.14515599]
[1641692922456,0.25,142.62,142.58,28.14515599]
[1641692922856,0.26,142.62,142.58,28.14515599]
[1641692923059,11.0282,142.64,142.57,10.12]
[1641692924061,3.0,142.63,142.57,10.12]
[1641692924262,10.5214,142.61,142.57,10.12]
[1641692924462,0.26,142.6,142.57,10.12]
[1641692924661,3.03219997,142.59,142.57,10.12]
[1641692925063,0.26,142.58,142.57,10.12]
[1641692925461,0.26,142.58,142.57,13.12]
[1641692925861,3.03219997,142.59,142.57,16.15219997]
[1641692926063,0.25,142.6,142.57,13.15219997]
[1641692926263,0.25,142.6,142.58,27.00468362]
[1641692926465,0.51,142.62,142.58,27.00468362]
[1641692926862,0.25,142.62,142.58,27.00468362]
[1641692928293,0.51,142.62,142.58,27.00468362]
[1641692928495,0.26,142.62,142.58,27.00468362]
[1641692929095,1.9805488,142.64,142.58,27.00468362]
[1641692929297,0.26,142.63,142.58,27.00468362]
[1641692929496,10.5193,142.62,142.58,27.00468362]
[1641692929693,0.26,142.63,142.58,27.00468362]
[1641692929894,0.51,142.63,142.58,27.00468362]
[1641692930195,2.4905488,142.63,142.58,27.00468362]
[1641692930593,13.0090488,142.63,142.58,27.00468362]
[1641692931494,12.7490488,142.63,142.58,27.00468362]
[1641692932897,0.26,142.62,142.58,27.00468362]
[1641692933595,10.7791,142.62,142.58,27.00468362]
[1641692933996,0.25,142.61,142.58,27.00468362]
[1641692934498,3.03219997,142.6,142.58,27.00468362]
[1641692934696,3.03219997,142.6,142.59,3.03219997]
[1641692935096,0.25,142.61,142.58,27.00468362]
[1641692935912,10.7699,142.61,142.58,27.00468362]
[1641692936110,3.03219997,142.6,142.58,27.00468362]
[1641692938212,3.03219997,142.6,142.55,10.12]
[1641692938413,0.26,142.59,142.55,10.12]
[1641692938813,0.51,142.59,142.55,10.12]
[1641692939014,0.25,142.61,142.55,10.12]
[1641692939413,10.5218,142.59,142.55,10.12]
[1641692939814,0.26,142.58,142.55,10.12]
[1641692940013,0.26,142.58,142.56,3.03219997]
[1641692940413,2.2405488,142.61,142.56,3.03219997]
[1641692941017,0.26,142.61,142.56,3.03219997]
[1641692941420,10.5215,142.59,142.56,3.03219997]
[1641692941614,3.03219997,142.58,142.56,3.03219997]
[1641692941914,0.26,142.61,142.56,3.03219997]
[1641692942116,0.51,142.61,142.56,3.03219997]
[1641692942514,13.0110488,142.61,142.56,3.03219997]
[1641692942714,13.0110488,142.61,142.57,27.60896149]
[1641692943114,2.4905488,142.61,142.57,27.60896149]
[1641692943615,2.2305488,142.61,142.57,27.60896149]
[1641692943815,1.9805488,142.61,142.57,27.60896149]
[1641692944916,0.26,142.6,142.57,27.60896149]
[1641692945115,3.03219997,142.59,142.57,27.60896149]
[1641692945717,3.03219997,142.59,142.58,3.03219997]
[1641692945919,0.26,142.59,142.58,3.03219997]
[1641692946751,3.29219997,142.59,142.57,27.60896149]
[1641692946920,10.5217,142.59,142.58,3.03219997]
[1641692947521,10.5217,142.59,142.57,27.60896149]
[1641692947919,3.03219997,142.58,142.57,27.60896149]
[1641692950622,10.7805,142.61,142.57,30.64116146]
[1641692955727,10.5205,142.61,142.57,30.64116146]
[1641692956524,10.5218,142.59,142.57,30.64116146]
[1641692956727,0.25,142.6,142.57,30.64116146]
[1641692956926,37.0511488,142.63,142.57,30.64116146]
[1641692957126,1.9805488,142.63,142.57,30.64116146]
[1641692957326,1.9805488,142.62,142.58,10.37]
[1641692958130,1.9805488,142.66,142.58,10.37]
[1641692958329,10.5171,142.65,142.58,10.37]
[1641692958529,10.7671,142.65,142.59,0.26]
[1641692958728,10.7671,142.65,142.6,30.7646924]
[1641692959929,12.7476488,142.65,142.6,30.7646924]
[1641692961530,1.9805488,142.64,142.6,30.7646924]
[1641692961757,1.9805488,142.64,142.59,10.12]
[1641692961758,10.5199,142.62,142.59,10.12]
[1641692961931,1.9805488,142.64,142.6,3.03219997]
[1641692962130,0.77,142.6,142.54,10.12]
[1641692962731,23.96382057,142.59,142.54,10.12]
[1641692962933,0.25,142.58,142.54,10.12]
[1641692963532,23.96382057,142.59,142.54,10.12]
[1641692963732,0.25,142.58,142.54,10.12]
[1641692964934,10.7721,142.58,142.54,10.12]
[1641692966335,0.25,142.58,142.54,10.12]